[Event "Late-Titled-Tuesday-Blitz-April-02-2024"]
[Site "Chess.com"]
[Date "2024.04.02"]
[Round "5"]
[White "Cambek64"]
[Black "ArtemDyachuk"]
[Result "0-1"]
[WhiteElo "2509"]
[BlackElo "2781"]
[TimeControl "180+1"]
[EndTime "14:55:13 PDT"]
[Termination "ArtemDyachuk won on time"]

1. e4 {[%clk 0:01:13.1]} 1... e5 {[%clk 0:02:59.4]} 2. Nf3 {[%clk 0:01:12]} 2...
Nc6 {[%clk 0:02:59.8]} 3. Bb5 {[%clk 0:01:12.3]} 3... a6 {[%clk 0:03:00.1]} 4.
Bxc6 {[%clk 0:01:12.9]} 4... dxc6 {[%clk 0:02:59.6]} 5. d4 {[%clk 0:01:13.4]}
5... exd4 {[%clk 0:02:58.7]} 6. Qxd4 {[%clk 0:01:14.3]} 6... Qxd4 {[%clk
0:02:54.7]} 7. Nxd4 {[%clk 0:01:15.2]} 7... Bd7 {[%clk 0:02:55.6]} 8. Be3 {[%clk
0:01:15]} 8... O-O-O {[%clk 0:02:54.6]} 9. Nd2 {[%clk 0:01:15.4]} 9... Nf6
{[%clk 0:02:53.9]} 10. f3 {[%clk 0:01:14.6]} 10... Bc5 {[%clk 0:02:53]} 11. N2b3
{[%clk 0:01:13.8]} 11... Bb6 {[%clk 0:02:51.7]} 12. Kf2 {[%clk 0:01:13.8]} 12...
h5 {[%clk 0:02:50.2]} 13. Rad1 {[%clk 0:01:09.2]} 13... h4 {[%clk 0:02:49.5]}
14. Rhe1 {[%clk 0:01:08]} 14... Rh5 {[%clk 0:02:33.8]} 15. Ne2 {[%clk 0:01:07]}
15... Bxe3+ {[%clk 0:02:29.4]} 16. Kxe3 {[%clk 0:01:05.9]} 16... Re8 {[%clk
0:02:28.3]} 17. Kf2 {[%clk 0:01:05.1]} 17... a5 {[%clk 0:02:22.9]} 18. Nf4
{[%clk 0:01:00.3]} 18... Rg5 {[%clk 0:02:18.7]} 19. Nd4 {[%clk 0:00:49.8]} 19...
b6 {[%clk 0:02:13.7]} 20. Nde2 {[%clk 0:00:47.5]} 20... h3 {[%clk 0:02:10.3]}
21. g3 {[%clk 0:00:46.3]} 21... Rb5 {[%clk 0:02:03.3]} 22. Nd3 {[%clk
0:00:44.9]} 22... a4 {[%clk 0:01:55.1]} 23. Nc3 {[%clk 0:00:37.5]} 23... Ra5
{[%clk 0:01:55.2]} 24. a3 {[%clk 0:00:36.4]} 24... g5 {[%clk 0:01:54.8]} 25. g4
{[%clk 0:00:34.1]} 25... Nh7 {[%clk 0:01:50.2]} 26. Kg3 {[%clk 0:00:34.4]} 26...
Rh8 {[%clk 0:01:48.1]} 27. Nf2 {[%clk 0:00:34.7]} 27... Nf8 {[%clk 0:01:44.7]}
28. Nxh3 {[%clk 0:00:35.1]} 28... Ng6 {[%clk 0:01:45.1]} 29. Ng1 {[%clk
0:00:35.4]} 29... Nf4 {[%clk 0:01:38.4]} 30. Nce2 {[%clk 0:00:35.1]} 30... Rb5
{[%clk 0:01:38]} 31. Rb1 {[%clk 0:00:35.1]} 31... Ne6 {[%clk 0:01:37.9]} 32. Nh3
{[%clk 0:00:31.3]} 32... Rc5 {[%clk 0:01:36.2]} 33. c3 {[%clk 0:00:30.1]} 33...
f6 {[%clk 0:01:34.8]} 34. Nf2 {[%clk 0:00:30.3]} 34... Be8 {[%clk 0:01:31.4]}
35. Rbd1 {[%clk 0:00:27.5]} 35... Bf7 {[%clk 0:01:29.9]} 36. Nd3 {[%clk
0:00:26.3]} 36... Rb5 {[%clk 0:01:28.7]} 37. Nd4 {[%clk 0:00:26.1]} 37... Nxd4
{[%clk 0:01:28.8]} 38. cxd4 {[%clk 0:00:26.7]} 38... Rb3 {[%clk 0:01:28.9]} 39.
Rd2 {[%clk 0:00:19.9]} 39... Bc4 {[%clk 0:01:27.9]} 40. Nf2 {[%clk 0:00:17.2]}
40... Rd8 {[%clk 0:01:22.9]} 41. e5 {[%clk 0:00:16.6]} 41... fxe5 {[%clk
0:01:20.9]} 42. Rxe5 {[%clk 0:00:16.4]} 42... Bd5 {[%clk 0:01:20.6]} 43. Ne4
{[%clk 0:00:17]} 43... Rf8 {[%clk 0:01:19.8]} 44. Rf2 {[%clk 0:00:15.8]} 44...
Rd3 {[%clk 0:01:08.5]} 45. Nxg5 {[%clk 0:00:16.4]} 45... Rd1 {[%clk 0:01:08.6]}
46. Ne6 {[%clk 0:00:17]} 46... Rg1+ {[%clk 0:01:03.4]} 47. Kh4 {[%clk
0:00:12.3]} 47... Rh8+ {[%clk 0:01:03.2]} 48. Rh5 {[%clk 0:00:12.2]} 48... Rxh5+
{[%clk 0:01:02.6]} 49. Kxh5 {[%clk 0:00:12.4]} 49... Bxe6 {[%clk 0:01:03]} 50.
h4 {[%clk 0:00:12.3]} 50... Kd7 {[%clk 0:01:02.5]} 51. Kg5 {[%clk 0:00:12.8]}
51... Rd1 {[%clk 0:01:00.1]} 52. h5 {[%clk 0:00:11.8]} 52... Rxd4 {[%clk
0:01:00]} 53. f4 {[%clk 0:00:11.8]} 53... Bg8 {[%clk 0:00:58.4]} 54. f5 {[%clk
0:00:12.2]} 54... Ke8 {[%clk 0:00:57.4]} 55. Rf4 {[%clk 0:00:12.4]} 55... Rd6
{[%clk 0:00:55.7]} 56. h6 {[%clk 0:00:09.4]} 56... b5 {[%clk 0:00:52.8]} 57.
Re4+ {[%clk 0:00:07]} 57... Kf8 {[%clk 0:00:53]} 58. Re3 {[%clk 0:00:06.9]}
58... c5 {[%clk 0:00:50.9]} 59. Rc3 {[%clk 0:00:06.4]} 59... c4 {[%clk
0:00:50.4]} 60. Rh3 {[%clk 0:00:03.7]} 60... Bh7 {[%clk 0:00:49.4]} 61. Kf4
{[%clk 0:00:03.6]} 61... c5 {[%clk 0:00:49.2]} 62. g5 {[%clk 0:00:03.1]} 62...
Kg8 {[%clk 0:00:46.8]} 63. g6 {[%clk 0:00:03.3]} 63... b4 {[%clk 0:00:41.5]} 64.
gxh7+ {[%clk 0:00:02.9]} 64... Kxh7 {[%clk 0:00:42.4]} 65. Ke5 {[%clk
0:00:03.2]} 65... Rd2 {[%clk 0:00:28]} 66. axb4 {[%clk 0:00:03.1]} 66... cxb4
{[%clk 0:00:27.8]} 67. f6 {[%clk 0:00:02.4]} 67... Rxb2 {[%clk 0:00:26.5]} 68.
Kd4 {[%clk 0:00:01.4]} 68... c3 {[%clk 0:00:25.3]} 69. f7 {[%clk 0:00:02.1]}
69... Rf2 {[%clk 0:00:25]} 70. Kc4 {[%clk 0:00:02]} 70... c2 {[%clk 0:00:23]}
71. Rh1 {[%clk 0:00:00.5]} 71... Rxf7 {[%clk 0:00:22.5]} 0-1

[Event "Late-Titled-Tuesday-Blitz-April-02-2024"]
[Site "Chess.com"]
[Date "2024.04.02"]
[Round "5"]
[White "Practical-Play"]
[Black "Mysterio47"]
[Result "1-0"]
[WhiteElo "2502"]
[BlackElo "2744"]
[TimeControl "180+1"]
[EndTime "14:55:55 PDT"]
[Termination "Practical-Play won by resignation"]

1. e4 {[%clk 0:03:00.9]} 1... c5 {[%clk 0:02:56.2]} 2. c3 {[%clk 0:02:59.1]}
2... b6 {[%clk 0:02:48.7]} 3. d4 {[%clk 0:02:58.2]} 3... Bb7 {[%clk 0:02:48.6]}
4. Bd3 {[%clk 0:02:56.9]} 4... e6 {[%clk 0:02:45.5]} 5. Nf3 {[%clk 0:02:54]}
5... Nf6 {[%clk 0:02:45.6]} 6. Qe2 {[%clk 0:02:53.4]} 6... d5 {[%clk 0:02:44.5]}
7. exd5 {[%clk 0:02:16]} 7... Nxd5 {[%clk 0:02:45.4]} 8. Bb5+ {[%clk 0:02:15.4]}
8... Bc6 {[%clk 0:02:41.5]} 9. Bxc6+ {[%clk 0:02:10.4]} 9... Nxc6 {[%clk
0:02:41.3]} 10. c4 {[%clk 0:02:10.9]} 10... Nde7 {[%clk 0:02:31.8]} 11. dxc5
{[%clk 0:02:06.6]} 11... bxc5 {[%clk 0:02:32.7]} 12. O-O {[%clk 0:01:50.7]}
12... Nf5 {[%clk 0:02:29.3]} 13. Qe4 {[%clk 0:01:45.2]} 13... Qc8 {[%clk
0:02:19.4]} 14. Re1 {[%clk 0:01:42.2]} 14... Be7 {[%clk 0:02:16.7]} 15. Nc3
{[%clk 0:01:34.9]} 15... O-O {[%clk 0:02:16.6]} 16. Bf4 {[%clk 0:01:30.1]} 16...
Bf6 {[%clk 0:02:11.3]} 17. Rac1 {[%clk 0:01:28.6]} 17... Rd8 {[%clk 0:02:07.3]}
18. Red1 {[%clk 0:01:17.1]} 18... Nfd4 {[%clk 0:02:05.9]} 19. Ne1 {[%clk
0:01:10.6]} 19... Qa6 {[%clk 0:02:01.2]} 20. b3 {[%clk 0:00:54.1]} 20... Be7
{[%clk 0:01:29.9]} 21. Nd3 {[%clk 0:00:50.6]} 21... Qa5 {[%clk 0:01:15.4]} 22.
Bd2 {[%clk 0:00:43.7]} 22... Qc7 {[%clk 0:01:12.1]} 23. Na4 {[%clk 0:00:42.6]}
23... f5 {[%clk 0:01:03.9]} 24. Qe1 {[%clk 0:00:38.5]} 24... Nb8 {[%clk
0:00:51.9]} 25. Bf4 {[%clk 0:00:37.3]} 25... Qc6 {[%clk 0:00:49.7]} 26. Ne5
{[%clk 0:00:30.2]} 26... Qe8 {[%clk 0:00:46]} 27. Nd3 {[%clk 0:00:29]} 27... Nd7
{[%clk 0:00:43.4]} 28. Be3 {[%clk 0:00:27.4]} 28... e5 {[%clk 0:00:27.8]} 29.
Bxd4 {[%clk 0:00:25.1]} 29... exd4 {[%clk 0:00:27.5]} 30. Qe6+ {[%clk
0:00:24.1]} 30... Qf7 {[%clk 0:00:28.2]} 31. Nf4 {[%clk 0:00:21]} 31... Bg5
{[%clk 0:00:24.3]} 32. Qxf7+ {[%clk 0:00:18.3]} 32... Kxf7 {[%clk 0:00:25.2]}
33. g3 {[%clk 0:00:18.7]} 33... Bxf4 {[%clk 0:00:25.5]} 34. gxf4 {[%clk
0:00:19.6]} 34... a5 {[%clk 0:00:24]} 35. Re1 {[%clk 0:00:19.2]} 35... Re8
{[%clk 0:00:24.5]} 36. Kg2 {[%clk 0:00:18.4]} 36... Re4 {[%clk 0:00:24.3]} 37.
Nb2 {[%clk 0:00:11.1]} 37... Rxf4 {[%clk 0:00:21.6]} 38. f3 {[%clk 0:00:10.7]}
38... Re8 {[%clk 0:00:17.1]} 39. Rxe8 {[%clk 0:00:10.2]} 39... Kxe8 {[%clk
0:00:18]} 40. Re1+ {[%clk 0:00:10.3]} 40... Kf7 {[%clk 0:00:17.5]} 41. Nd3
{[%clk 0:00:10.9]} 41... Rh4 {[%clk 0:00:16.3]} 42. Ne5+ {[%clk 0:00:11.3]}
42... Nxe5 {[%clk 0:00:14.4]} 43. Rxe5 {[%clk 0:00:12.2]} 43... d3 {[%clk
0:00:14.7]} 44. Rd5 {[%clk 0:00:12]} 44... Ke6 {[%clk 0:00:11.5]} 45. Rxd3
{[%clk 0:00:11.6]} 45... g5 {[%clk 0:00:05.4]} 46. Re3+ {[%clk 0:00:10.5]} 46...
Kd6 {[%clk 0:00:05.3]} 47. Re8 {[%clk 0:00:09.7]} 47... Rd4 {[%clk 0:00:04.9]}
48. Rf8 {[%clk 0:00:09.3]} 48... Ke5 {[%clk 0:00:05.1]} 49. Kg3 {[%clk
0:00:08.4]} 49... h5 {[%clk 0:00:04.4]} 50. Re8+ {[%clk 0:00:08.4]} 50... Kf6
{[%clk 0:00:04.8]} 51. Rf8+ {[%clk 0:00:08.5]} 51... Kg6 {[%clk 0:00:04.7]} 52.
Rg8+ {[%clk 0:00:08.7]} 52... Kh6 {[%clk 0:00:05]} 53. Rh8+ {[%clk 0:00:08.7]}
53... Kg7 {[%clk 0:00:05.6]} 54. Rxh5 {[%clk 0:00:08.7]} 54... Kg6 {[%clk
0:00:06.3]} 55. Rh8 {[%clk 0:00:08.8]} 55... Rd2 {[%clk 0:00:07.2]} 56. Rg8+
{[%clk 0:00:09.1]} 56... Kf6 {[%clk 0:00:07.4]} 57. Rf8+ {[%clk 0:00:09.6]}
57... Ke5 {[%clk 0:00:07.9]} 58. Re8+ {[%clk 0:00:10.1]} 58... Kf6 {[%clk
0:00:07.9]} 59. Rf8+ {[%clk 0:00:10.5]} 59... Kg6 {[%clk 0:00:07.9]} 60. Rg8+
{[%clk 0:00:10.7]} 60... Kf7 {[%clk 0:00:08.2]} 61. Rxg5 {[%clk 0:00:10.5]}
61... Kf6 {[%clk 0:00:08.5]} 62. Rg8 {[%clk 0:00:09.3]} 62... Rxa2 {[%clk
0:00:09]} 63. Rc8 {[%clk 0:00:09.7]} 63... a4 {[%clk 0:00:03.2]} 64. bxa4 {[%clk
0:00:09.4]} 64... Rxa4 {[%clk 0:00:04.1]} 65. Rxc5 {[%clk 0:00:08.1]} 65... Ra3
{[%clk 0:00:04.7]} 66. Kf4 {[%clk 0:00:08.1]} 66... Ra2 {[%clk 0:00:05.3]} 67.
Rxf5+ {[%clk 0:00:08.3]} 67... Kg6 {[%clk 0:00:05.4]} 68. h4 {[%clk 0:00:08.2]}
68... Rh2 {[%clk 0:00:05.5]} 69. Rg5+ {[%clk 0:00:07.6]} 69... Kf6 {[%clk
0:00:05.9]} 70. Kg3 {[%clk 0:00:06.7]} 70... Rc2 {[%clk 0:00:06.4]} 71. Rc5
{[%clk 0:00:07.1]} 71... Rc3 {[%clk 0:00:06.1]} 72. h5 {[%clk 0:00:07.2]} 72...
Kg7 {[%clk 0:00:06.2]} 73. Kg4 {[%clk 0:00:07.5]} 73... Kh6 {[%clk 0:00:06.3]}
74. Rc6+ {[%clk 0:00:06.2]} 74... Kh7 {[%clk 0:00:07]} 75. f4 {[%clk 0:00:06.7]}
75... Rc1 {[%clk 0:00:07.3]} 76. Kg5 {[%clk 0:00:05.6]} 76... Kg7 {[%clk
0:00:07.8]} 77. Rc7+ {[%clk 0:00:05.5]} 77... Kg8 {[%clk 0:00:07.7]} 78. Kf6
{[%clk 0:00:04.6]} 78... Rh1 {[%clk 0:00:05.4]} 79. Rc8+ {[%clk 0:00:03.9]}
79... Kh7 {[%clk 0:00:05.6]} 80. Rc7+ {[%clk 0:00:04.7]} 80... Kh6 {[%clk
0:00:05.4]} 81. Rc8 {[%clk 0:00:05.2]} 81... Kh7 {[%clk 0:00:05.5]} 82. Rc5
{[%clk 0:00:05.8]} 82... Rd1 {[%clk 0:00:04.9]} 83. Rc7+ {[%clk 0:00:04.5]}
83... Kh6 {[%clk 0:00:04.7]} 84. Rc5 {[%clk 0:00:04.8]} 84... Re1 {[%clk
0:00:04]} 85. Rg5 {[%clk 0:00:04.5]} 85... Rc1 {[%clk 0:00:03.9]} 86. c5 {[%clk
0:00:04.6]} 86... Kh7 {[%clk 0:00:04.6]} 87. Ke6 {[%clk 0:00:05.1]} 87... Rc4
{[%clk 0:00:04.9]} 88. Kd6 {[%clk 0:00:05.6]} 88... Rxf4 {[%clk 0:00:05.3]} 89.
c6 {[%clk 0:00:06.2]} 89... Kh6 {[%clk 0:00:05.1]} 90. Rg1 {[%clk 0:00:05.4]}
90... Kxh5 {[%clk 0:00:05.6]} 91. c7 {[%clk 0:00:05.8]} 91... Rd4+ {[%clk
0:00:06.2]} 92. Ke7 {[%clk 0:00:06.2]} 92... Rc4 {[%clk 0:00:06.3]} 93. Kd8
{[%clk 0:00:06.7]} 93... Rd4+ {[%clk 0:00:06.9]} 94. Kc8 {[%clk 0:00:07.2]}
94... Rc4 {[%clk 0:00:07.4]} 95. Rd1 {[%clk 0:00:05.8]} 95... Kg6 {[%clk
0:00:07.6]} 96. Kd7 {[%clk 0:00:05.3]} 1-0

[Event "Late-Titled-Tuesday-Blitz-April-02-2024"]
[Site "Chess.com"]
[Date "2024.04.02"]
[Round "5"]
[White "Romkachess"]
[Black "platy3"]
[Result "1/2-1/2"]
[WhiteElo "2681"]
[BlackElo "2944"]
[TimeControl "180+1"]
[EndTime "14:56:24 PDT"]
[Termination "Game drawn by 50-move rule"]

1. e4 {[%clk 0:03:00.9]} 1... c5 {[%clk 0:02:56.9]} 2. Nf3 {[%clk 0:02:59.5]}
2... e6 {[%clk 0:02:57.1]} 3. d4 {[%clk 0:02:56.5]} 3... cxd4 {[%clk 0:02:58]}
4. Nxd4 {[%clk 0:02:56.4]} 4... Nc6 {[%clk 0:02:58.5]} 5. Nc3 {[%clk 0:02:52.6]}
5... Qc7 {[%clk 0:02:59]} 6. Be3 {[%clk 0:02:49.5]} 6... a6 {[%clk 0:02:58.5]}
7. Qd2 {[%clk 0:02:47.3]} 7... Nf6 {[%clk 0:02:58]} 8. f4 {[%clk 0:02:42.7]}
8... Bb4 {[%clk 0:02:50.7]} 9. Bd3 {[%clk 0:02:41.1]} 9... b5 {[%clk 0:02:50.9]}
10. a3 {[%clk 0:02:27.1]} 10... Be7 {[%clk 0:02:50.5]} 11. Nxc6 {[%clk
0:01:59.5]} 11... dxc6 {[%clk 0:02:48.2]} 12. e5 {[%clk 0:01:46]} 12... Ng4
{[%clk 0:02:44.4]} 13. Ne4 {[%clk 0:01:39.7]} 13... c5 {[%clk 0:02:41]} 14. h3
{[%clk 0:01:24.3]} 14... Nxe3 {[%clk 0:02:39.2]} 15. Qxe3 {[%clk 0:01:25.2]}
15... Bb7 {[%clk 0:02:38.6]} 16. c4 {[%clk 0:01:22.8]} 16... Bh4+ {[%clk
0:02:12.3]} 17. g3 {[%clk 0:01:16.8]} 17... Be7 {[%clk 0:02:12.7]} 18. O-O-O
{[%clk 0:01:01.7]} 18... O-O-O {[%clk 0:02:05.8]} 19. Rhe1 {[%clk 0:00:55.5]}
19... b4 {[%clk 0:01:45.8]} 20. axb4 {[%clk 0:00:47.9]} 20... cxb4 {[%clk
0:01:45.5]} 21. Kb1 {[%clk 0:00:45.5]} 21... Kb8 {[%clk 0:01:35.1]} 22. c5
{[%clk 0:00:44.2]} 22... Bxe4 {[%clk 0:01:34.3]} 23. Qxe4 {[%clk 0:00:40.6]}
23... a5 {[%clk 0:01:30.9]} 24. c6 {[%clk 0:00:29.4]} 24... Qb6 {[%clk
0:01:30.7]} 25. Bc4 {[%clk 0:00:25.1]} 25... Kc7 {[%clk 0:01:30.5]} 26. Rd7+
{[%clk 0:00:19.5]} 26... Rxd7 {[%clk 0:01:29.4]} 27. cxd7 {[%clk 0:00:20.4]}
27... Rd8 {[%clk 0:01:28.7]} 28. Rc1 {[%clk 0:00:20.5]} 28... Kb8 {[%clk
0:01:28.6]} 29. Qd3 {[%clk 0:00:13.1]} 29... Bc5 {[%clk 0:01:12.5]} 30. Bb5
{[%clk 0:00:13.3]} 30... Be3 {[%clk 0:01:00]} 31. Rc2 {[%clk 0:00:10.5]} 31...
Qd4 {[%clk 0:01:00.3]} 32. Qe2 {[%clk 0:00:07.1]} 32... g5 {[%clk 0:00:56.2]}
33. Ba4 {[%clk 0:00:05]} 33... gxf4 {[%clk 0:00:32.7]} 34. Qb5+ {[%clk
0:00:05.5]} 34... Qb6 {[%clk 0:00:32.6]} 35. Qc4 {[%clk 0:00:06.2]} 35... Qb7
{[%clk 0:00:29.9]} 36. gxf4 {[%clk 0:00:05.8]} 36... Qh1+ {[%clk 0:00:27.7]} 37.
Ka2 {[%clk 0:00:05.8]} 37... Qd5 {[%clk 0:00:28.6]} 38. Qxd5 {[%clk 0:00:04.1]}
38... exd5 {[%clk 0:00:29.5]} 39. f5 {[%clk 0:00:03.4]} 39... d4 {[%clk
0:00:29.2]} 40. e6 {[%clk 0:00:03.8]} 40... fxe6 {[%clk 0:00:29.7]} 41. fxe6
{[%clk 0:00:04.4]} 41... Bg5 {[%clk 0:00:30.4]} 42. Re2 {[%clk 0:00:04.3]} 42...
Be7 {[%clk 0:00:24.2]} 43. Re4 {[%clk 0:00:04.6]} 43... Kc7 {[%clk 0:00:20]} 44.
Rxd4 {[%clk 0:00:04.9]} 44... Rb8 {[%clk 0:00:18.4]} 45. Kb3 {[%clk 0:00:05.2]}
45... Rf8 {[%clk 0:00:17.7]} 46. Rg4 {[%clk 0:00:05.2]} 46... Rf3+ {[%clk
0:00:17.6]} 47. Kc4 {[%clk 0:00:05.8]} 47... Kd6 {[%clk 0:00:16.9]} 48. Rg7
{[%clk 0:00:04.9]} 48... Kxe6 {[%clk 0:00:16.8]} 49. Rxh7 {[%clk 0:00:05.2]}
49... Rf4+ {[%clk 0:00:14.8]} 50. Kb3 {[%clk 0:00:04.9]} 50... Rf3+ {[%clk
0:00:15]} 51. Kc4 {[%clk 0:00:05.5]} 51... Rf4+ {[%clk 0:00:15.5]} 52. Kd3
{[%clk 0:00:06]} 52... Rf3+ {[%clk 0:00:15.2]} 53. Ke4 {[%clk 0:00:06.6]} 53...
Rg3 {[%clk 0:00:14.6]} 54. Rh6+ {[%clk 0:00:07.1]} 54... Kf7 {[%clk 0:00:14.7]}
55. Rh7+ {[%clk 0:00:07.2]} 55... Ke6 {[%clk 0:00:15.1]} 56. Rh6+ {[%clk
0:00:07.1]} 56... Kf7 {[%clk 0:00:15]} 57. Bb5 {[%clk 0:00:07.7]} 57... Rg2
{[%clk 0:00:10.8]} 58. Bc4+ {[%clk 0:00:08]} 58... Kg7 {[%clk 0:00:11.3]} 59.
Re6 {[%clk 0:00:08.4]} 59... Kf8 {[%clk 0:00:10.3]} 60. b3 {[%clk 0:00:08.7]}
60... Rd2 {[%clk 0:00:09.2]} 61. Ra6 {[%clk 0:00:08.8]} 61... Rxd7 {[%clk
0:00:09]} 62. Rxa5 {[%clk 0:00:09.4]} 62... Rd2 {[%clk 0:00:09.2]} 63. Rf5+
{[%clk 0:00:09.7]} 63... Ke8 {[%clk 0:00:09.4]} 64. Rh5 {[%clk 0:00:09.9]} 64...
Rh2 {[%clk 0:00:08.7]} 65. Rh8+ {[%clk 0:00:09.9]} 65... Kd7 {[%clk 0:00:09.2]}
66. Kf3 {[%clk 0:00:10.6]} 66... Rh1 {[%clk 0:00:09.1]} 67. Rh7 {[%clk
0:00:11.1]} 67... Kd6 {[%clk 0:00:09.1]} 68. Kg4 {[%clk 0:00:11.5]} 68... Rg1+
{[%clk 0:00:09.4]} 69. Kh5 {[%clk 0:00:11.1]} 69... Rg5+ {[%clk 0:00:09.1]} 70.
Kh6 {[%clk 0:00:11.1]} 70... Rg3 {[%clk 0:00:09.6]} 71. h4 {[%clk 0:00:07.4]}
71... Bxh4 {[%clk 0:00:09.5]} 72. Rg7 {[%clk 0:00:07.7]} 72... Rc3 {[%clk
0:00:04.6]} 73. Rg4 {[%clk 0:00:07]} 73... Bf6 {[%clk 0:00:04.5]} 74. Kg6 {[%clk
0:00:07.4]} 74... Be5 {[%clk 0:00:04.4]} 75. Kf5 {[%clk 0:00:07.8]} 75... Re3
{[%clk 0:00:03.4]} 76. Rg6+ {[%clk 0:00:07.8]} 76... Kc5 {[%clk 0:00:03.9]} 77.
Re6 {[%clk 0:00:08.7]} 77... Kd4 {[%clk 0:00:03.8]} 78. Re8 {[%clk 0:00:08.4]}
78... Rf3+ {[%clk 0:00:03.4]} 79. Kg4 {[%clk 0:00:08.2]} 79... Rf4+ {[%clk
0:00:03.2]} 80. Kg5 {[%clk 0:00:08.8]} 80... Rf2 {[%clk 0:00:02.7]} 81. Rd8+
{[%clk 0:00:09.1]} 81... Kc3 {[%clk 0:00:03.2]} 82. Rd5 {[%clk 0:00:09.1]} 82...
Bd4 {[%clk 0:00:03.2]} 83. Rd7 {[%clk 0:00:08.8]} 83... Rf8 {[%clk 0:00:03.1]}
84. Kg4 {[%clk 0:00:08.7]} 84... Rc8 {[%clk 0:00:02.5]} 85. Kf5 {[%clk
0:00:08.9]} 85... Rc5+ {[%clk 0:00:02.2]} 86. Ke4 {[%clk 0:00:08.8]} 86... Bf6
{[%clk 0:00:02]} 87. Rd3+ {[%clk 0:00:08.8]} 87... Kb2 {[%clk 0:00:02.5]} 88.
Rf3 {[%clk 0:00:09.7]} 88... Bc3 {[%clk 0:00:02.8]} 89. Bd5 {[%clk 0:00:08.2]}
89... Rc7 {[%clk 0:00:02.7]} 90. Bc4 {[%clk 0:00:08.3]} 90... Re7+ {[%clk
0:00:03.3]} 91. Kd5 {[%clk 0:00:08.7]} 91... Rd7+ {[%clk 0:00:04]} 92. Kc6
{[%clk 0:00:09.1]} 92... Rd2 {[%clk 0:00:04.4]} 93. Rf5 {[%clk 0:00:08.4]} 93...
Rd4 {[%clk 0:00:04.8]} 94. Rb5 {[%clk 0:00:08.3]} 94... Kc2 {[%clk 0:00:04.4]}
95. Rd5 {[%clk 0:00:07.7]} 95... Rh4 {[%clk 0:00:04.5]} 96. Kb5 {[%clk
0:00:07.8]} 96... Rh6 {[%clk 0:00:04.2]} 97. Rd7 {[%clk 0:00:08.1]} 97... Rh8
{[%clk 0:00:04.4]} 98. Rd5 {[%clk 0:00:08.6]} 98... Rb8+ {[%clk 0:00:04.6]} 99.
Kc6 {[%clk 0:00:09.2]} 99... Rc8+ {[%clk 0:00:05.5]} 100. Kb5 {[%clk 0:00:09.8]}
100... Kb2 {[%clk 0:00:05]} 101. Rd7 {[%clk 0:00:09.5]} 101... Ra8 {[%clk
0:00:05.5]} 102. Rf7 {[%clk 0:00:09.6]} 102... Kc2 {[%clk 0:00:04]} 103. Rf2+
{[%clk 0:00:10]} 103... Kd1 {[%clk 0:00:04.6]} 104. Rg2 {[%clk 0:00:10.4]}
104... Ke1 {[%clk 0:00:04.9]} 105. Bd3 {[%clk 0:00:10.7]} 105... Ra3 {[%clk
0:00:04.4]} 106. Bc4 {[%clk 0:00:11]} 106... Ra7 {[%clk 0:00:04.1]} 107. Re2+
{[%clk 0:00:11.4]} 107... Kd1 {[%clk 0:00:04.1]} 108. Re6 {[%clk 0:00:12.3]}
108... Kd2 {[%clk 0:00:04.1]} 109. Be2 {[%clk 0:00:12.5]} 109... Ra3 {[%clk
0:00:03.6]} 110. Bc4 {[%clk 0:00:12.8]} 110... Ra7 {[%clk 0:00:03.6]} 111. Rd6+
{[%clk 0:00:13.2]} 111... Kc1 {[%clk 0:00:03.5]} 112. Rg6 {[%clk 0:00:14.1]}
112... Kc2 {[%clk 0:00:03.2]} 113. Rg2+ {[%clk 0:00:14.6]} 113... Kd1 {[%clk
0:00:03.4]} 114. Kc5 {[%clk 0:00:14.6]} 114... Ra5+ {[%clk 0:00:03.7]} 115. Kd6
{[%clk 0:00:14.7]} 115... Re5 {[%clk 0:00:04.1]} 116. Rg1+ {[%clk 0:00:13.7]}
116... Kd2 {[%clk 0:00:04]} 117. Rg2+ {[%clk 0:00:14.1]} 117... Kc1 {[%clk
0:00:04.6]} 118. Rg1+ {[%clk 0:00:14.4]} 118... Kb2 {[%clk 0:00:05.3]} 119. Rg2+
{[%clk 0:00:14.9]} 119... Ka3 {[%clk 0:00:06]} 120. Kc6 {[%clk 0:00:14.7]}
120... Re1 {[%clk 0:00:05.6]} 121. Rh2 {[%clk 0:00:12.8]} 121... Rb1 {[%clk
0:00:05.8]} 1/2-1/2

[Event "Late-Titled-Tuesday-Blitz-April-02-2024"]
[Site "Chess.com"]
[Date "2024.04.02"]
[Round "6"]
[White "esrosenberg"]
[Black "remyrushbrooke"]
[Result "0-1"]
[WhiteElo "2437"]
[BlackElo "2263"]
[TimeControl "180+1"]
[EndTime "14:59:58 PDT"]
[Termination "remyrushbrooke won by checkmate"]

1. d4 {[%clk 0:03:00.9]} 1... g6 {[%clk 0:02:59.2]} 2. e4 {[%clk 0:02:54.4]}
2... Bg7 {[%clk 0:02:58.7]} 3. Nf3 {[%clk 0:02:51.3]} 3... d6 {[%clk 0:02:56.1]}
4. Nc3 {[%clk 0:02:50.7]} 4... a6 {[%clk 0:02:54.6]} 5. Bd3 {[%clk 0:02:45.6]}
5... b5 {[%clk 0:02:48.8]} 6. Qe2 {[%clk 0:02:42.1]} 6... Bb7 {[%clk 0:02:26.1]}
7. e5 {[%clk 0:02:32.2]} 7... dxe5 {[%clk 0:02:17.8]} 8. dxe5 {[%clk 0:02:31.1]}
8... e6 {[%clk 0:02:16]} 9. O-O {[%clk 0:02:24.2]} 9... c5 {[%clk 0:02:12.5]}
10. Bg5 {[%clk 0:02:17.3]} 10... Qc7 {[%clk 0:02:10.9]} 11. Bxb5+ {[%clk
0:02:10.5]} 11... axb5 {[%clk 0:02:08.7]} 12. Nxb5 {[%clk 0:02:11.4]} 12... Qc6
{[%clk 0:02:01]} 13. Nd6+ {[%clk 0:02:11.5]} 13... Kf8 {[%clk 0:02:00.9]} 14.
Qe3 {[%clk 0:01:44.6]} 14... Nd7 {[%clk 0:01:48.3]} 15. Qf4 {[%clk 0:01:44]}
15... Nxe5 {[%clk 0:01:42.9]} 16. Nxe5 {[%clk 0:01:43.2]} 16... Qxg2# {[%clk
0:01:42]} 0-1

[Event "Late-Titled-Tuesday-Blitz-April-02-2024"]
[Site "Chess.com"]
[Date "2024.04.02"]
[Round "6"]
[White "SultaiC"]
[Black "bipe137"]
[Result "0-1"]
[WhiteElo "2515"]
[BlackElo "2663"]
[TimeControl "180+1"]
[EndTime "15:00:19 PDT"]
[Termination "bipe137 won by resignation"]

1. e4 {[%clk 0:03:00.9]} 1... c5 {[%clk 0:02:59.8]} 2. c3 {[%clk 0:03:00.2]}
2... Nf6 {[%clk 0:02:59.9]} 3. e5 {[%clk 0:02:59.5]} 3... Nd5 {[%clk 0:03:00.2]}
4. Nf3 {[%clk 0:03:00.2]} 4... e6 {[%clk 0:02:59.5]} 5. d4 {[%clk 0:02:58.9]}
5... cxd4 {[%clk 0:03:00.4]} 6. cxd4 {[%clk 0:02:58.2]} 6... d6 {[%clk
0:03:00.8]} 7. Nc3 {[%clk 0:02:58.4]} 7... Nxc3 {[%clk 0:03:00.3]} 8. bxc3
{[%clk 0:02:59.3]} 8... Qc7 {[%clk 0:03:00.4]} 9. Qc2 {[%clk 0:02:53.7]} 9...
Nd7 {[%clk 0:02:59.2]} 10. Bf4 {[%clk 0:02:52.4]} 10... dxe5 {[%clk 0:02:56]}
11. Nxe5 {[%clk 0:02:53.3]} 11... Bd6 {[%clk 0:02:56]} 12. Qe4 {[%clk
0:02:12.8]} 12... Qxc3+ {[%clk 0:02:54]} 13. Ke2 {[%clk 0:02:04.8]} 13... Qxa1
{[%clk 0:02:53.7]} 14. Nxf7 {[%clk 0:01:49.2]} 14... Qxa2+ {[%clk 0:02:44.8]}
15. Kf3 {[%clk 0:01:47.4]} 15... Qa3+ {[%clk 0:02:44.3]} 16. Bd3 {[%clk
0:01:47.3]} 16... Kxf7 {[%clk 0:02:44.7]} 17. d5 {[%clk 0:01:41.5]} 17... Nf6
{[%clk 0:02:42.8]} 18. Qd4 {[%clk 0:01:27.2]} 18... Nxd5 {[%clk 0:02:38.8]} 19.
Ra1 {[%clk 0:01:19.9]} 19... Qc5 {[%clk 0:02:36.4]} 20. Qe4 {[%clk 0:01:16]}
20... Nxf4 {[%clk 0:02:34.7]} 21. Rd1 {[%clk 0:01:04.8]} 21... Qh5+ {[%clk
0:02:24.2]} 22. Ke3 {[%clk 0:01:01.1]} 22... Qxd1 {[%clk 0:02:22.6]} 0-1